{"text_format":"2","workbook":"xlsx","n_sheets":3,"sheets":["统计表","旗智项目","分析"],"not_rendered":{"charts":1,"images":0,"macros":0,"external_links":0,"defined_names":4,"comments":0,"pivot_tables":0},"unopened":[],"bounds":{"document_bytes":16777216,"sheet_cells":100000,"run_cost":"one","rows_first":2000,"rows_last":500,"rows_between":2000,"halvings":0,"cell_chars":16384,"cell_head_chars":4096},"cells_cut":0,"cells_raw":0,"read":"whole","date_system":"1900"}

{"sheet":"统计表","index":0,"n_rows":291,"n_cols":8,"rows_kept":291,"cut":false,"hidden":false,"merged":[[290,1,290,7],[1,1,1,7]]}
[]
[null,"吉林省工业技术研究院重点项目库"]
[null,"序号","项目名称","主要建设内容及规模","项目主体","项目进展","跟踪支持单位","项目来源"]
[null,null,"总计",{"$f":"SUM(D5,D39,D70,D95,D156,D161,D175,D200,D226,D237,D243,D254,D275,D281)","v":272}]
[null,"一","汽车电子及新型汽车零部件",{"$f":"B38","v":33}]
[null,1,"汽车智能化装配生产线项目","汽车零部件及配件制造；工厂数字化、智能化改造、工艺技术升级；智能汽车相关技术的研发；汽车零部件轻量化以及汽车零部件系统相关研发，致力于为“三富”智能制造和数字化转型提供支撑","新慧科技公司、众升科技公司","完成","工研院","亚东投资"]
[null,2,"电致变色薄膜项目","首创的可逆电控质子转移变色机理，开发出的全新的电致变色技术，可用于汽车变色调光天窗、自适应伪装、建筑变色玻璃、智能变色眼镜等领域。项目拟开展柔性电致变色薄膜的制备和产业化应用，为市场提供节能、舒适、高性价比的柔性电致变色调光产品","珠海兴业新材料、吉林大学、工研院公司","投资","工研院","市场调研"]
[null,3,"恩高光学PC玻璃项目","江苏恩高光学材料有限公司突破了加工设备及工艺流程的问题，成功开发出全球独特的前硬化可热压印刷PC硬化板及大尺寸PC玻璃，实现高性能、较低成本、高良品率兼顾的PC玻璃的生产与销售，是我国首家获得欧洲汽车塑料安全玻璃E-mark认证，并通过ECE R43测试的汽车塑料玻璃制造企业","江苏恩高光学材料有限公司","研究论证","工研院","旗智创新中心"]
[null,{"$f":"B8+1","v":4},"汽车及高端制造业电控系统测试项目","上海蔚赫信息科技有限公司为全球汽车及高端制造业电控系统提供测试设备及服务，以实现工具链自主可控为目标，提供硬件在环仿真（HiL）、智能试验数据平台等。蔚赫信息已经完成收购德国BOCSH全资子公司ETAS公司全球HiL IP并已经开始接管整合ETAS HiL全球业务，LABCAR是全球汽车HiL细分市场TOP2品牌，有近30年市场应用经验，被全球一流汽车制造商和零部件供应商广泛采用","上海蔚赫信息科技有限公司","观察","工研院","旗智创新中心"]
[null,5,"旗禾硅碳材料应用项目","旗禾科技（吉林）有限责任公司成立于2022年1月，是由吉林凯禹、一汽创新基金、吉林盛鑫、锦州凯美、旗智创新中心、产学研基金六方共同出资设立的稻壳资源化综合利用企业。公司立足吉林省农业和汽车产业优势，通过高校院所资源，依托属地汽车产业优势，以农业废弃物资源综合利用为基础，变废为宝，围绕汽车轻量化和低碳化，风光电网和智能仪表等，着重发展硅炭材料、高性能专用料、高活性炭基材料、高附加值器件四大类产品","旗禾公司","研究论证","工研院","旗智创新中心"]
[null,6,"麦迪克自动轮项目","吉林大学靳立强教授所发明的自动轮技术以轮毂电机驱动为基础集成线控制动、主销转向、高承载悬架结构为一体。使车轮本身具备转向、制动、驱动等功能，使底盘能够实现整车任意方向直线行驶包括原地调头、横移、斜移、角转向等各种行驶功能，是唯一能快速被车企认可的角模块构型方案。已完成第四代满足产业化需求的自动轮产品研发并实现多家车企应用装车。","麦迪克公司","观察","工研院","市场调研"]
[null,7,"格致汽车科技项目","汽车轻量化车身成型装备及汽车金属零部件的设计、研发、制造及销售","格致汽车科技股份有限公司","观察","工研院","亚东投资"]
[null,8,"长春森酉科技项目","为整车、汽车零部件企业提供最佳的焊接、冲压自动化智能制造装备与系统集成解决方案开发能力的全能型企业","长春森酉科技有限公司","观察","工研院","市场调研"]
[null,9,"赛博以太无线供电项目","利用海外公司授权使用的磁共振技术实现车内远距离无线供电应用","赛博国际","观察","工研院","市场调研"]
[null,10,"UWB-AOA单锚点数字钥匙","UWB数字钥匙和车载雷达、UWB定位系统","北京全迹科技有限公司","观察","工研院","旗智创新中心"]
[null,11,"“汽车智能驾驶脑” 一中国自主可控的汽车智能驾驶计算平台","瞄准中国自主可控智能网联汽车计算单元的国家战略需求，开展中国设计中国制造的智能网联汽车专用高性能控制器研发","吉林大学","观察","工研院","企业家日"]
[null,12,"面向自动驾驶车辆的全天候、 全时段室外目标跟踪行驶控制系统","无人自主地质勘探装备关键技术研究与系统开发，针对野外复杂恶劣作业环境特点，已形成一套集环境感知、自主行驶、无人自主作业功能于一身的智能移动勘探作业平台，目前，已完成系统的搭建与样机测试，并正在不断深化调整系统功能，向成果应用阶段进行开发","吉林大学","观察","工研院","企业家日"]
[null,13,"汽车数智化制造平台","针对制造企业的痛点，启璞沉淀了数套全方位打通的数字化服务方案，其中包括3大平台、8个核心系统（共20多个系统，100多个工业APP），打造智能工厂","长春启璞科技信息咨询有限公司","观察","工研院","市场调研"]
[null,14,"线控EMB系统","项目基础为吉大团队与中汽创智合作的IBC液压线控制动系统应用软件开发、与浙江亚太合作的智能辅助驾驶系统的技术积累，以及项目团队申请发明专利（16）、学术论文（56）等。","吉林大学汽车学院","观察","工研院","市场调研"]
[null,15,"汽车电子","致力于成为全球领先的科技创新型企业。必捷必科技全面覆盖全球主流软件及汽车电子硬件开发技术，同时重点布局国产自主控制器研发赛道，依托汽车电子技术的深厚积累，面向智能汽车、物联网业务领域，以自主创新为基石，集聚产业链优势技术资源，为客户提供全生命周期的技术研发和全栈解决方案服务。","必捷必科技（吉林省）有限公司","观察","工研院","市场调研"]
[null,16,"汽车网络安全","依托授权的专利技术，通过自主研发和校企合作，开发设计出来的智能车载防火墙产品项目","吉林省安来科技有限责任公司","观察","工研院","市场调研"]
[null,{"$f":"B21+1","v":17},"数格系统——汽车车身技术AI解决方案","主营业务工业软件开发及AI数字孪生开发，目标打造国内汽车行业领先的AI数字化轻量化解决方案服务商","长春旗格科技有限公司","观察","工研院","创客大赛"]
[null,18,"智能网联汽车供应链产业园项目","引入国内外高端配套商，依托长春市朝阳区已经整理出来的4平方公里的土地，连接公主岭物流园，建设一个以模块化、数字化、智能化为标志的4.0版的高端汽车零部件产业园","一汽资本运营公司、长发集团、省国有资本运营公司","观察","工研院","省重大项目办"]
[null,19,"汽车智能座舱项目","法国佛吉亚、旭阳集团合作开发生产汽车智能座舱项目，为汽车提供模块化产品，项目落位智能网联汽车供应链产业园","法国佛吉亚集团、长春旭阳工业","观察","工研院","省重大项目办"]
[null,20,"智能网联汽车工业互联网项目","由一汽牵头，建设智能网联汽车工业互联网平台，支撑一汽建设国内领先、世界一流的移动出行服务商。目前，智能网联汽车工业互联网平台已经初步具备提供应用部署开发服务条件，测试系统、测试工具、测试规范、工业APP库已建成","一汽集团、华为、神州数码","观察","工研院","省重大项目办"]
[null,21,"富奥汽车底盘轻量化项目","建设生产低压铸造、高压铸造类铝合金的底盘及车身结构件的生产线","富奥汽车零部件有限公司","观察","工研院","十四五重大工业项目"]
[null,22,"富奥汽车零部件股份有限公司泵业分公司智能制造整体改造项目","建设智能制造系统解决方案。新建自动化的装配线体，进行老线体的智能化升级改造，实现远程运维","长春合心机械制造有限公司","观察","工研院","十四五重大工业项目"]
[null,23,"玲珑轮胎高性能子午线轮胎生产项目","建设年产1400万条高性能子午线轮胎和20万条翻新轮胎智能工厂，打造全球轮胎行业首个数字化、智能化的工业互联网平台","山东玲珑轮胎股份有限公司","观察","工研院","十四五重大工业项目"]
[null,24,"汽车线束智能制造装备","实现了线束柔性组装测试工作台与握力感应布线机械手，可依据不同线束型号快速完成固线节点换型和线束排布，为柔性化组装测试提供平台基础","长春光机所","观察","工研院","企业家日"]
[null,25,"车窗玻璃及车身用柔性、彩色智能调光膜技术","开发具有自主知识产权的基于电致变色技术的全彩色智能调光膜，成本下降50%，驱动电压低于5V，响应速度秒级，双稳态（颜色保持不耗电）、可大面积制备，不仅适用于车窗，也可贴于车身任何部位，用于改变颜色、定制化动态显示所需信息","长春光机所吕莹团队","观察","工研院","企业家日"]
[null,26,"旗智创新中心技术开发项目","奔腾定制车型娱乐部件开发项目、红旗球幕驾驶体验项目、车载图像增强摄像头研发项目、纳米保温防火隔声材料应用项目、三坐标智慧测量系统项目、车路协同V2X-OBU终端及测试项目、L4级冗余线控底盘平台车控单元项目","旗智创新中心","观察","工研院","旗智创新中心"]
[null,{"$f":"B31+1","v":27},"挚感光子自动驾驶激光雷达项目","主要进行单点传感器应用/市场、新品研发（3D扫描，测厚仪，光谱仪）、ASIC研发、第二代FMCW研发、OPA及SiP全固态汽车激光雷达研发","挚感（苏州）光子科技有限公司","观察","工研院","旗智创新中心"]
[null,{"$f":"B32+1","v":28},"轴向开关磁阻轮毂电机项目","开发用于电动汽车的轮毂电机","吉林大学汽车工程学院庄晔团队","观察","工研院","中科创投"]
[null,{"$f":"B33+1","v":29},"纯电动汽车无动力中断换挡两挡AMT变速箱项目","优化设计电驱动传动构型——无动力中断2档AMT变速器及其控制系统，换挡平顺，无动力中断","吉林大学通信工程学院陈虹团队","观察","工研院","中科创投"]
[null,{"$f":"B34+1","v":30},"激光雷达项目","车载固态激光雷达光源模块研制；硅基光电子集成车载固态激光雷达芯片的设计研制；车载固态激光雷达高速控制电路设计研制及系统集成","一汽集团、长春光机所、吉林大学、富赛汽车电子","观察","工研院","一汽集团"]
[null,31,"增加电动车总续航里程的新型驱动电机项目","设计，研发、制造及销售高续航新型驱动电机，通过全时回收定子线圈断电后产生的高压反电动势电能，增加电动车辆续航里程","吉林省任你行新能源科技有限公司","观察","工研院","吉浙对口合作"]
[null,32,"汽车线束智能柔性自动化生产线项目","汽车线束智能柔性自动化生产线对传统的汽车线束生产线进行了重新布局和合理配置，可实现汽车线束分装组装的全流程生产","中科院长春光机所","观察","工研院","长春市汽开区"]
[null,33,"富晟亿美汽车光电零部件（长春）有限公司项目","研发、生产智能汽车内外饰灯光系统零部件、自动驾驶雷达系统零部件，提供整体解决方案","富晟亿美","观察","工研院","省股权"]
[null,"二","光电子及智能传感器",{"$f":"B69-B38","v":30}]
[null,{"$f":"B38+1","v":34},"求是光谱芯片项目","研发产品主要有三类：一类为以智能手机为平台在线检测识别日用消费品中有害物质的易谱系列；一类为“光谱芯片”，光谱芯片是公司的核心产品；一类为围绕“光谱芯片”在智能制造领域的应用产品","长春理工大学、吉林求是光谱数据科技有限公司","观察","工研院","长春理工"]
[null,{"$f":"B40+1","v":35},"OCT成像与光纤传感项目","光学相干层析成像系统（OCT）、分布式光纤传感系统的研发与生产","吉林大学张天瑜","观察","工研院","市场调研"]
[null,{"$f":"B41+1","v":36},"CMOS图像传感器芯片产业化项目","团队拥有先进的芯片设计硬件和EDA软件环境，具备完整的芯片设计、图像算法、器件工艺等关键技术的研发能力。通过现有产品及在研产品产业化落地，在智能车载、航空航天、医疗等领域拟与东光集团、一汽集团合作","吉林省福斯匹克科技有限责任公司","观察","工研院","长春理工"]
[null,37,"激光补光灯及激光雷达项目","通过激光合成光谱技术发出替代阳光，设计具有特定光谱波长的专用灯具；无人机搭载激光雷达对大面积田间作物三维表型数据的采集，在农作物的调查、监测、管理等方面，能够提供多源数据作为支撑","长春光机所","观察","工研院","市场调研"]
[null,38,"全光纤脉冲激光器产业化","全光纤脉冲激光器采用光纤非线性锁模技术和全光纤结构设计，通过对长波段光纤色散补偿压缩脉冲宽度，实现窄脉宽激光信号的产生，具备输出脉冲效率高、峰值功率高、脉冲强度大、重复频率可调谐，波长可覆盖近、中红外宽波段的特点。广泛用于金属切割、焊接，高分子聚合物及显示屏等非金属加工、增材制造、电子元器件加工、医疗手术和美容等","长春理工","观察","工研院","企业家日"]
[null,39,"红外计算多光谱探测系统","一种基于表面等离子体的金属纳米盘/孔阵列滤光片，其为红外多光谱集成化片上设计的实现提供新的解决方案。该研究在极大程度上解决传统红外多光谱相机的重量和体积弊端，同时提供优秀的光谱分辨率和较低串扰，并结合自主研发的计算光谱重建技术，完成红外多光谱相机的集成化设计","长春理工","观察","工研院","企业家日"]
[null,40,"便携式自动化光纤化学发光免疫分析仪","化学发光免疫分析仪作为体外诊断的仪器，可对疾病标志物精准检测。本项目以生物传感技术结合免疫分析，构建了新型光纤免疫传感器，开发出具有自主知识产权的，高效、低成本、可现场检测的小型便携式自动化光纤化学发光免疫分析仪，实现痕量生物标记物的超灵敏检测，解决自动化化学发光免疫分析仪的关键技术被国外公司垄断、便携性差、价格高等问题","东北师大","观察","工研院","企业家日"]
[null,41,"江机民科军用装备项目","由兵工集团所属国营五二四厂改制而来，其红外瞄准镜已获军队5年期订单，同时布局多个军用及非军用产品线","吉林市江机民科实业有限公司","研究论证","工研院","市场调研"]
[null,42,"微型化低功、远程通信、定位追踪成套设备","公司主要产品为微型化低功、远程通信、追踪定位成套设备，解决无公网区域的远程通信和目标定位搜索以及有公网区域的信息化系统的数据安全和数据保密问题，实现独立的低功远程上下行通信功能和目标位置追踪、主动搜索功能。","吉林亮中科技有限公司","观察","工研院","市场调研"]
[null,43,"亚纳米高精度光学元件","吉林省巨程智造光电技术有限公司成立于2020 年9月25日，注册资本1428万元。公司位于长春市国家级新区璀璨产业园，厂区面积10000平方米，是一家专业从事高精密纳米光学元器件、光机组件研发、生产的企业，具备光学加工及检测全道序能力。主要产品非球面镜、高精度透镜、大口径平面镜、立方镜、分划板、红外产品、棱镜和平面镜、光机组件，已供向航空航天、军工、科研院所、高新技术企业等。","吉林省巨程智造光电技术有限公司","观察","工研院","市场调研"]
[null,{"$f":"B49+1","v":44},"光学薄膜、光谱滤光片","公司主营业务围绕新型光谱滤光片及基于光谱滤光片的(成像)光谱仪等核心技术，致力于打造国内高端光学镀膜、光学元件、光电仪器的研发生产平台，产品广泛应用于航空航天、食品卫生、精准农业以及教学科研等领域。","长春长光辰谱科技有限公司","观察","工研院","光电子孵化器"]
[null,45,"8K摄像机","公司专注于8K摄像模组及整机的研发、生产、测试、组装和维修等完整工艺流程，完成产品的小批量生产与市场销售，形成稳定的营业收入与利润后,持续加大研发投入。通过持续研发投入，形成知识产权成果，保持企业增长创新活力。通过高效转化技术成果，孵化具有市场技术竞争优势的产品，形成良性动态发展,实现企业利润盈余，保持企业稳定发展。","长春长光新视超高清科技有限公司","观察","工研院","长光视园"]
[null,46,"碳化硅、氧化铝陶瓷封装基板产品设计、制造与检测","针对大面阵科学级CMOS图像传感器封装卡脖子问题，突破硬脆性材料微倒角加工、耦合强化传热等多项关键技术，国内首次实现碳化硅封装，具有“三新一高”的特点，新材料：在图像传感器封装领域，国内首次使用碳化硅材料。","长春长光启辰科技有限公司","观察","工研院","长光视园"]
[null,47,"和光数据监测、分析","燃气、煤质、光伏、风电的在线监测，高光谱数据分析与处理，图像识别与分析，无人机光谱检测，机器人光谱检测，设备故障诊断与分析，自主导航与位置定位等核心技术与专利产品，形成大数据平台、人工智能算法体系、医疗检测平台、无人机智能巡检系统、机器人智能巡检系统、智慧供热系统、电力检修平台等智能生态链条。","吉林省和光智能科技有限责任公司","观察","工研院","长光视园"]
[null,48,"中大口径非球面及自由曲面的高端精密光学元件加工及检测装备","研制以超精密磁流变加工技术、计算机数控小磨头加工技术为基础的一系列光学复杂曲面加工装备，以快速相位偏折检测技术、高精度子孔径拼接技术为基础的一系列高端复杂曲面检测装备，打造具有国际影响力的先进光学装备生产商及面向高端客户定制的光学产品研制服务提供商。","长春长光大器科技有限公司","观察","工研院","长光视园"]
[null,49,"单细胞分选仪","长光辰英核心产品——PRECI SCS单细胞分选仪，是公开发布的首款基于激光诱导向前转移技术的商品化单细胞分离产品，具有免标记、非接触、准确率高等特点，广泛应用于单细胞测序、未培养微生物研究、工程细胞筛选等领域。此外，公司自主研发的P300共聚焦拉曼光谱仪、S3000超快三维成像系统、MicroRaman颗粒物检测仪等产品，为科研、医学、制药等领域提供有力工具。","长春长光辰英生物科学仪器有限公司","观察","工研院","长光视园"]
[null,{"$f":"B55+1","v":50},"深度真空制冷短波红外成像技术及产业化","真空制冷成像技术研发、制造、装调、测试，实现国产替代","长春长光奥闰光电科技有限公司","观察","工研院","长光视园"]
[null,51,"大气光学综合参数测量系统","大气及气象参数测试设备研发与测试","珩辉光电测量技术（吉林）有限公司","观察","工研院","创客大赛"]
[null,52,"激光雷达与毫米波雷达项目","与航天科技集团九院704研究所合作，共同开发生产激光雷达和毫米波雷达。同时，共同开发毫米波安检仪等安防产品。合作开发海上遥感、通信、检测技术和产品，参与珲春海洋经济合作示范区建设","航天科技集团、吉林省泰华电子股份有限公司","观察","工研院","省重大项目办"]
[null,53,"长春国际传感器产业园","构建生产制造中心、产学研中心、产品和技术展示中心、应用场景体验中心、公共服务平台和企业总部基地等6大板块，同时构建国家级传感器产业创新中心，形成以长春为中心，北京、杭州、深圳为支撑的传感器产业创新体系","长春荣德光学","观察","工研院","省重大项目办"]
[null,54,"高端传感器项目","与中国电子信息产业集团、航天科技集团航天动力技术研究所（四院）、九院（704所）等单位合作，在吉林省研发制造高端传感器，面向汽车、轨道客车、卫星、火箭及物联网等领域推广应用","航天科技集团、中国电子信息产业集团、中国一汽集团、长春光机所","观察","工研院","省重大项目办"]
[null,55,"智能农业传感器项目","包括粮仓多参数一体化检测传感器、系列粮食水分在线快检传感器、核磁水分快速检测仪、粮食生物安全J值快检传感器、粮仓绝对水势监测传感与分析系统等","吉大生物与农业工程学院、仪器学院、吉大工程仿生教育部重点实验","观察","工研院","传感器规划"]
[null,56,"光电传感器项目","光电仪器、激光、半导体照明与显示、光伏、光通信","光机所、吉大、长理、东光集团、奥莱德、亿思达科技、赛诺索光电","观察","工研院","传感器规划"]
[null,57,"化学量传感器项目","车载尾气检测用NOx、NH3传感器；环境检测用CO、SO2、NO2和O3传感器；燃料电池型新能源汽车安全管理用CO、甲醇和H2传感器；医疗诊断用典型VOC传感器；阻容式聚合物湿度传感器","吉大电子科学与工程学院、吉大先进气体传感器重点实验","观察","工研院","传感器规划"]
[null,58,"MEMS传感器项目","车联网安全与箱桥智能监测传感器；车联网安全与车轮智能监测的多参量振动计传感器；车联网安全与电动汽车充放电智能管理的无线无源非侵入式电流检测传感器","吉林大学微工程与微系统实验室","观察","工研院","传感器规划"]
[null,59,"激光农业照明灯的研制与应用推广","主要研究激光农业照明技术及装备，可大幅提高单位电能的光补偿效果，是一种低功耗的新型补光技术，面向水稻育苗、食药用菌培植、高端经济作物和中草药种植等吉林省的特色设施农业产业，实现作物全生命周期的生长调控，达到增产提质的目的","长春光机所","观察","工研院","企业家日"]
[null,60,"小型、高亮度特种白激光照明光源","自主研发和攻关，基于可见光半导体激光技术和激光合束技术，研制出小型、轻量、高效、输出功率可达几瓦至数千瓦的高亮度特种白激光照明光源，应用在监狱探照、国界安防及工场照明等","长春光机所","观察","工研院","企业家日"]
[null,61,"星-空-地一体化数字农业技术","研发出一套农业信息提取模型并制作出农业遥感系列产品，该成果在吉林省大部分地区进行了应用，已服务于吉林省政府衣业种植结构调整及农业保险公司的估损及定损","吉林大学","观察","工研院","企业家日"]
[null,62,"反向驱动F-P传感型微光谱仪开发与产业化项目","研发小微型光谱仪，拓宽微型光谱仪的光谱探测范围以及光谱探测精度，与手机摄像、车载监测系统等融合抢占现有市场，开拓新应用市场","中科院长春光机所","观察","工研院","吉浙对口合作"]
[null,63,"基于第三代氧化物半导体薄膜的MEMS传感器项目","建立传感器研发中心，依托气体流量传感器、气体压力传感器、氢气泄漏传感器、可燃气体传感器、集成式温度传感器、阵列式单一气体传感器、甲醛气体传感器、燃气传感器、一氧化氮传感器产品知识产权，进行传感器封测研发线的开发","中山大学","观察","工研院","市场调研"]
[null,"三","精密仪器及先进装备",{"$f":"B94-B69","v":24}]
[null,{"$f":"B69+1","v":64},"超快精密激光加工装备关键技术研究与产业化","瞄准电子制造和半导体领域硬脆材料器件精密制造的国内迫切需求，以解决蓝宝石、石英等硬脆构件的高精度、高品质制造为出发点，攻克装备性能提升研究和工业化设计难题，开发基于超快激光隐形切割与定量改性的多功能一体化的硬脆材料精密加工装备。集成光电子学国家重点实验室","吉林大学","观察","工研院","对外合作"]
[null,{"$f":"B71+1","v":65},"工业相机及视频流应用","设备赋能数字化工厂、智能装备生产线；实现自动化生产、数字化管理、产品可追溯等功能","无界融合（吉林）科技有限公司","观察","工研院","工研院对外合作中心"]
[null,{"$f":"B72+1","v":66},"智能采茶设备项目","集多光谱成像技术、三维成像技术、机器视觉、人工智能，机器人以及智能控制等当前国内外先进技术为一体的设备，智能农作物采摘设备的研发可解决劳动力短缺的问题、降低农民的劳动强度、提高劳动生产率、降低农作物成本、保证农作物及时生产采收、保证农产品质量","中科院长春光机所","观察","工研院","市场调研"]
[null,67,"航空线束自动化生产装备产业化","本项目技术及产品取得发明专利18项、实用新型专利2项；申报中的发明专利3项，在国际上处于领先地位，多项技术属于行业首创，相关产品已通过高校接受飞机制造厂委托开发的形式进行小批量生产，于2018年应用在国内某型号战斗机的线束装备生产线中，未来可拓展应用于民用飞机、高铁、汽车等线束装备领域。已用于生产，产业化成熟度高","长春理工","观察","工研院","企业家日"]
[null,68,"智能真火、烟热消防救援训练设施孵化项目","蓝程科技发展有限公司成立于2021年，致力于开发用于消防救援行业各类火灾及特种灾害事故等场景的智能化真火、烟热训练设施产品及单兵作战综合定位、检测系统","蓝程科技发展有限公司","观察","工研院","市场调研"]
[null,{"$f":"B75+1","v":69},"融成智造灌装设备项目","国内危化灌装设备生产线细分龙头企业（市占率50%）","长春融成智能设备制造股份有限公司","研究论证","工研院","亚东公司"]
[null,{"$f":"B76+1","v":70},"轨道车辆车载设备研发和生产","开发基于云边协同的车对地无线传输与安全监测系统，解决安全、运维、成本、实施等痛点。","吉林云帆智能工程有限公司","观察","工研院","创业导师活动"]
[null,{"$f":"B77+1","v":71},"北方农机产业创新示范基地","规划建设集生产、研发为一体，服务北方、辐射东北亚地区的百亿级北方农机产业创新示范基地。一是康达二期5000台播种机已开工；二是与波兰尤妮亚、美国艾科、俄罗斯罗斯托夫等洽谈合作形成了前期意向，下一步将继续进行深入对接洽谈；三是可研已通过专家论证","国机集团中国农机院","观察","工研院","省重大项目办"]
[null,72,"启星铝业轨道客车大型铝合金型材及汽车轻量化零部件项目","建设235MN特种挤压生产线、75MN挤压生产线各1条，购置设备135台套","吉林启星铝业有限公司","观察","工研院","十四五重大工业项目"]
[null,73,"安瑞克智能制造产业建设项目","主要建设安瑞克企业研究院、智慧能源管理中心、检测及试验中心、生物质锅炉设备智能制造生产基地、生物质燃料加工生产基地、智能化输变电设备生产基地等","安瑞克电气科技有限责任公司","观察","工研院","十四五重大工业项目"]
[null,74,"道路主动除冰雪导电复合型材与智能监控技术","针对主动融冰雪 “卡脖子” 技术难题，提出道路融冰雪高性能材料一结构一体化设计理论及灾害主动防范方法，实现绿色、低能耗、安全、低成本、易施工、智能化地防范冰雪灾害","吉林大学","观察","工研院","企业家日"]
[null,75,"工业炉内温度在线连续测量仪项目","研发用于炼钢炉、蓝宝石晶体生长炉等工业炉场景的温度在线连续测量仪","长春理工大学理学院徐立君团队","观察","工研院","中科创投"]
[null,76,"地学物理探测仪器项目","从事地学物理探测仪器等方面的研发、生产、销售及工程技术应用","吉林大学国家地球物理探测仪器工程技术研究中心","观察","工研院","中科创投"]
[null,77,"高端光学系统研发项目","基因测序用超高通量显微镜头、半导体在线检测用特殊高端光学镜头、军民两用特种光学镜头、系列化特种导航光学镜头开展研发","长春长光智欧科技有限公司","观察","工研院","中科创投"]
[null,78,"智能农机研发项目","自主研发农机无人驾驶系统","北京中科原动力科技有限公司","观察","工研院","中科创投"]
[null,79,"视频高光谱成像仪项目","研制可见近红外的视频高光谱成像仪","中科院长春光机所","观察","工研院","长光视园"]
[null,80,"傅里叶光谱成像仪项目","研制可搭载于轻型无人机的灵巧型高速傅里叶光谱成像仪","中科院长春光机所","观察","工研院","长光视园"]
[null,81,"多层析、高分辨光场调控型立体动态显微成像系统项目","多层析显微成像系统用于获取样品三维信息表征，可用于生物医学领域获取细胞、微小生物组织等样品的高分辨三维显微成像与分析研究","中科院长春光机所","观察","工研院","长光视园"]
[null,82,"热熔沉积式3D打印机项目","开发热熔沉积式3D打印机","深圳市开物三维科技有限公司","观察","工研院","中科德睿"]
[null,83,"多旋翼无人机项目","针对“智慧农业”发展需求，已研发多种型号多旋翼无人机，并完成大量农业作业试验，目前已进入产业化推广阶段","中科院长春光机所","观察","工研院","市场调研"]
[null,84,"温室气体探测仪","长春光机所团队以可调谐激光吸收光谱技术、离轴积分腔增强输出光谱、数字正交锁相放大器等光学核心技术研发高精度气体监测、探测仪器，突破国外垄断。","中科院长春光机所","观察","工研院","科技大市场"]
[null,85,"小麦赤霉病高光谱普查检测设备项目","成像高光谱仪能同时获得样本的光谱以及空间信息，首先对小麦籽粒高光谱图像进行反射率反演、滤波、特征提取，然后对每个像元进行分类，可以快速判断小麦籽粒是否染病，为实时原位检测小麦籽粒提供了可行的解决方案","中科院长春光机所","观察","工研院","市场调研"]
[null,86,"基于小型机械臂的磁流变柔性在线加工检测系统项目","有效实现了常规非球面批量在线加工、非常规光学元件的定制加工以及汽车领域内特种合金材料模具的精密抛光等功能，发挥了“察打一体化”的智能化优势，真正意义上实现了加工、检测高效无人化闭环","中科院长春光机所","观察","工研院","市场调研"]
[null,87,"特种光电器件的超快激光微纳制备基础研究项目","建立特种光电器件超快激光加工装备产业化基地，具备为我国航空、航天和国防事业提供特种光电器件加工的能力","吉林大学电子科学与工程学院","观察","工研院","长春市汽开区"]
[null,"四","生物医药及先进医疗器械",{"$f":"B155-B94","v":60}]
[null,{"$f":"B94+1","v":88},"江林生物靶向小分子药物项目","靶向表观遗传调控蛋白的小分子药物，主攻恶性肿瘤以及免疫炎症性疾病","吉林省江林生物科技有限公司","完成","工研院","省股权"]
[null,{"$f":"B96+1","v":89},"益科思特双抗项目","面向急性白血病、非霍奇金淋巴癌的新型免疫双特异性抗体药物研发与制造","益科思特（北京）公司","研究论证","工研院","长春新区"]
[null,90,"辅助生殖化学发光检测","辅助生殖诊断相关的单人份化学发光检测系统以辅助生殖技术为切入点，在满足产前筛查、性腺类、不孕不育类系列生殖方向检测项目的同时，也可进行炎症、心肌标志物、甲状腺系列检测","吉林中科科仪有限公司","观察","工研院","医工所"]
[null,91,"硬性内窥镜","省内第一家集内窥镜研发、生产、维修于一体的科技公司","长春市光泓科技有限责任公司","观察","工研院","长春理工"]
[null,92,"神经及内分泌药物研发","作为仿制药企，以临床需求导向，围绕神经、内分泌科领域研发、制造丁苯酞、重组人生生长素、黄体酮凝胶、糖蛋白等产品管线","吉林省奇健生物技术有限公司","观察","工研院","长春新区"]
[null,93,"晶莱生物","公司围绕临床前CRO服务、动物实验等业务，通过与北京市高校、医院紧密合作，致力成为生物医药医学研发的一站式服务平台","北京晶莱华科生物技术有限公司","观察","工研院","长春新区"]
[null,{"$f":"B101+1","v":94},"无限远视觉保护","为守护眼发育、用眼健康，深耕眼视光产品研发领域取得多项专利，为青少年、白领等重频用眼人群，提供光科首例无限远视觉保护显示终端解决方案","长春市倍视得智能科技有限公司","观察","工研院","科技大市场"]
[null,95,"拓华生物","细胞生物技术与细胞药物研发细胞制备、储存与临床转化应用为一体的国家高新技术企业","吉林省拓华生物科技有限公司","观察","工研院","亚东公司"]
[null,96,"干细胞、外泌体、重组蛋白、白介素-27减肥","由吉林大学药学院马杰院长科研团队组建，以干细胞及重组蛋白药物研发、生产及转化为主要方向的高科技生物医药企业。主要产品位干细胞、外泌体、白介素-27以及纤连蛋白。","赛浦生物科技（长春）有限公司","观察","工研院","创业导师活动"]
[null,97,"同视机生产","运用传感器、物联网、互联网、图像识别与处理技术等技术，建立电子病历库，研发、制造行业领先的自动化同视机。","美视康健（北京）医疗技术发展有限公司","观察","工研院","创业导师活动"]
[null,98,"类器官项目","长春艺夫生物科技有限公司是一家以类器官技术为核心的创新型生物科技企业。公司成立于 2022 年 5 月，由丁健院士科研团队创立，总部位于吉林省长春市净月国家高新技术开发区。公司提供科研与临床精准治疗的肿瘤类器官药物敏感性检测平台、行业上中下游产品的转化与生产、新药研发-体外CRO服务，致力于个体化治疗、新药研发及基础医学研究三个方向。","长春艺夫生物科技有限公司","观察","工研院","长春生命健康产业研究院"]
[null,99,"医疗康养","辽源最大的医养综合体，拟开展血液透析等项目。","东辽盛邦医院","观察","工研院","市场调研"]
[null,100,"全人源抗胰高血糖素受体抗体","北京科信美德生物医药科技有限公司是一家生物制药公司，公司开发的治疗1型糖尿病的胰高血糖素受体抗体药物，获得了2014中关村十大创新成果奖。","北京科信美德生物医药科技有限公司","观察","工研院","市场调研"]
[null,101,"专注抗肿瘤创新药 研发、生产及商业化","聚焦肿瘤药物的研发、生产与销售。目前公司拥有两款具有同类最佳“best in class”潜力的商业化阶段抗肿瘤新药：中国首个且唯一，全球第三个获批宫颈癌适应症PD 1单抗；全球第二个获批的 CXCR4 抑制剂，为近十年来 FDA 在干细胞动员适应症批准的首个新药，通过具有协同效应的管线，差异化的临床开发和商业策略，满足医疗需求、治愈病患，实现国际布局。","誉衡生物","观察","工研院","市场调研"]
[null,{"$f":"B109+1","v":102},"人源NGF项目","神经生长因子(nerve growth factor, NGF) 是最早被发现的生长因子。自从它在20世纪50年代被发现，并在1986年获得诺贝尔奖以来，人们对它在对神经疾病，肿瘤等领域的临床应用寄予极高的期望。","长春力太生物技术有限公司","观察","工研院","长春生命健康产业研究院项目路演"]
[null,{"$f":"B110+1","v":103},"可吸收手术缝合线","利用树脂材料制备医用可吸收的缝合团线及缝线","长春赛诺海思生物医用材料有限公司/应化所孵化（陈学思）","观察","工研院","东北亚博览会医疗器械行业项目路演"]
[null,104,"新型生长因子载药可吸收手术缝","团队专业从事生长因子载药可吸收缝合线的科研、生产、销售和服务工作","吉林省长发现代农业科技集团有限公司","观察","工研院","创客大赛"]
[null,105,"新海生物干细胞药物项目","干细胞细胞药物研发与制造","吉林新海生物科技开发有限公司","观察","工研院","市场调研"]
[null,106,"TIL细胞药物项目","聚焦浸润性淋巴细胞（TIL）药物系列产品研发","上海医菲尼迪公司","研究论证","工研院","市场调研"]
[null,107,"博大制药化药项目","化学仿制药品依达拉奉、左乙拉西坦、利伐沙班的研发与制造","吉林省博大制药股份有限公司","观察","工研院","亚东公司"]
[null,108,"博大伟业化药项目","化学仿制药品聚普瑞锌颗粒的研发与制造","吉林省博大伟业制药有限公司","观察","工研院","亚东公司"]
[null,109,"结直肠癌检测项目","针对结直肠癌的血液中循环游离DNA（cfDNA）的甲基化检测","苏州医工所（长春）","观察","工研院","苏州医工所"]
[null,110,"新区创新药招商项目","鞍石生物、泰泽惠康、德益阳光、君远生物、奇健生物等生物创新药物项目","各企业","观察","工研院","长春新区"]
[null,111,"用于糖尿病 DKA预诊断的便携式丙酮检测仪的产业化应用","YSZ和CeCh基混成电位型丙酮传感器具有灵敏高、稳定性好和成本低等特点，是开发便携式糖尿病人DKA检测仪的理想器件","吉林大学","观察","工研院","企业家日"]
[null,{"$f":"B119+1","v":112},"重组全人源抗RANKL单克隆抗体药物产业化项目","面向中老年高发的骨质疏松、心脑血管等疾病领域，产品涵盖生物制品地舒单抗注射液、化药片剂阿仑膦酸钠片及保健食品等若干生物药、化药、保健品等","菲洋生物科技（吉林）有限公司","研究论证","工研院","创客大赛"]
[null,113,"山东威高血液透析北方运营中心项目","主要建设血液透析中心、透析制剂生产基地、腹膜透析生产基地、仓储物流中心、医疗器械托管配送中心等","山东威高集团、吉林大学","观察","工研院","省重大项目办"]
[null,114,"重离子加速器项目","项目总投资15亿元，占地面积18万平米。项目从开工建设到完成检测注册大概需要3～4年时间，其中一年半时间为设备加工和土建施工期，项目注册、检测和临床需要一年半到两年时间","亚泰集团、国科控股、吉龙实业、吉大一医、兰州近代物理所","观察","工研院","省重大项目办"]
[null,115,"圣博玛生物医用材料和高植医疗器械研发与产业化项目","主要建设行政办公区、企业研发和中试放大中心、核心生产设施、生产配套设施、第三方检测中心及其他配套设施等，生产可吸收骨骼内固定产品、运动医学产品、医学整形产品和创伤类产品等","长春圣博玛生物材料有限公司、长春应化所","观察","工研院","省重大项目办"]
[null,116,"先进医疗器械项目","引入平安医保科技公司，依托亚泰医药园，与吉林大学第一医院、亚泰集团和中科院苏州医学工程所，共建平台。同时，建设平安健康检测中心（东北旗舰店），并在吉港澳中医药合作区设立分中心，带动更多中医药企业和先进医疗器械企业进入亚泰医药园和吉港澳中医药合作区，形成医药健康产业集群","吉林大学第一医院、长春亚泰集团、中科院苏州医学工程所","观察","工研院","省重大项目办"]
[null,117,"智能可穿戴设备产业园项目","项目占地5万平方米，建筑面积8万平方米，建设生产区、研发区、综合服务区等",null,"观察","工研院","省重大项目办"]
[null,118,"长春生物制品所血液制品项目","建设血液制品生产车间","长春生物制品研究所","观察","工研院","十四五重大工业项目"]
[null,119,"国药集团生物疫苗基地项目","长春生物制品所建设疫苗分包装车间、P3生产车间、P3实验室，承接新冠疫苗半成品分包装、原液委托生产，开展人用疫苗研发生产。长春祈建建设疫苗分包装车间、仓储库等项目","长春生物制品研究所有限责任公司、长春祈建生物有限公司","观察","工研院","十四五重大工业项目"]
[null,120,"卓谊生物股份有限公司疫苗项目","建设冻干人用狂犬病疫苗（Vero细胞）智能化生产车间、CPG佐剂疫苗车间、研发中试车间、办公楼、质检楼、生活楼、食堂、会议中心、活动中心、实验动物室、仓库1、仓库2、危险品库（含危废库房）、污水站、动力站、动物房、人流门卫、物流门卫及其他附属配套设施等","长春卓谊生物股份有限公司","观察","工研院","十四五重大工业项目"]
[null,121,"金赛药业国际产业园建设项目","建设生产真核产品160万支/年、原核产品850万支/年、化药制剂产品200万支/年生产车间","长春金赛药业有限责任公司","观察","工研院","十四五重大工业项目"]
[null,122,"安沃高新基因抗体类药物生产项目","建设年产120万支阿达木单抗类似物、年产74万支贝伐珠单抗类似药、年产80万支阿柏西普类似物生产线","长春安沃高新生物制药有限公司","观察","工研院","十四五重大工业项目"]
[null,123,"康宁杰瑞（吉林）生物医药项目","建设年产100万支全人源化单克隆抗体生产线","康宁杰瑞（吉林）","观察","工研院","十四五重大工业项目"]
[null,124,"安睿特重组人白蛋白生产项目","建设生产车间、质检中心、仓库、危险品库、开闭所等，购置设备730台（套）","通化安睿特生物制药股份有限公司","观察","工研院","十四五重大工业项目"]
[null,125,"胰岛素全产业链项目","建设可生产二代、三代、四代，速效、短效、中效、长效及双时相等全系列胰岛素生产车间","吉林惠升生物制药有限公司","观察","工研院","十四五重大工业项目"]
[null,126,"华润生物疫苗项目","华润医药控股有限公司、中韩示范区双兴实业投资集团及嘉源生物药业公司合作打造国家级生物疫苗产业基地","华润医药、中韩示范区、嘉源生物","观察","工研院","十四五重大工业项目"]
[null,127,"罗邦制药建设项目","建设办公楼、生产车间、库房、职工生活用房","吉林省罗邦药业有限公司","观察","工研院","十四五重大工业项目"]
[null,128,"海外医药研发生产基地项目","主要建设大健康产业（含保健食品生产及中试基地）、医药仓储物流、总部大厦、研发基地。建设感叹号、布洛芬、乙肝宁片、通风定片及烫伤膏等100多种产品的生产车间","长春海外制药集团有限公司","观察","工研院","十四五重大工业项目"]
[null,129,"三圣医药制造基地项目","建设污水、固废处理站，原料药生产车间，原料药中间体生产车间，新品种生产车间，综合大楼，动力站，原固体制剂车间一层改造，仓库，制剂大楼，危险化学品库及相关附属设施","辽源市百康药业有限责任公司","观察","工研院","十四五重大工业项目"]
[null,130,"敖东延边药业口服液智能车间项目","新建智能提取车间、智能口服液车间、高架智能立体仓库、综合办公楼、研发中心等配套设施，实现年产口服液7.8亿支","吉林敖东延边药业股份有限公司","观察","工研院","十四五重大工业项目"]
[null,131,"医用高清3D腹腔内窥镜","用于腹腔、胸腔等科室的微创医学检查和微创手术，为医生实时提供高清三维图像信息，提升检查精准度，提高手术效率，该项目实现了3D内窥镜技术国产化，填补国内空白，和国外产品形成正面竞争，促进我国高端医疗器械产业化发展，增强国产高端医疗器械竞争力","长春光机所张红鑫研究员","观察","工研院","企业家日"]
[null,132,"数字PCR快速检测系统产业化项目","主要产品为PCR仪器及耗材，可广泛应用于医学、生物学等各个领域，如拷贝数变异、突变检测、NGS数据验证、单细胞基因表达分析等","长春国科医工科技发展有限公司","观察","工研院","中科创投"]
[null,133,"体液分析试剂研发项目","高品质全自动体液分析工作站及试剂和耗材的开发、生产和销售","长春迈克赛德医疗科技有限公司","研究论证","工研院","中科创投"]
[null,134,"血液免疫相容性检验系列产品产业化项目","研制SMART血型快速检测卡、ABO&RhDCE微流控芯片、水性胶微柱免疫分析试剂、血小板血型相容性检测系列试剂等产品","中科院苏州医工所李勇团队","观察","工研院","中科创投"]
[null,135,"便携式糖尿病酮症酸中毒检测仪项目","开发高性能便携式检测仪","吉林大学电子科学与工程学院","观察","工研院","中科创投"]
[null,136,"桑黄菌活性成分应用产业化项目","利用超声波、低温冻干等方法，得到桑黄提物干粉，运用在生物医药、保健食品领域","吉林大学分子酶学工程教育部重点实验室","观察","工研院","中科创投"]
[null,137,"SERScreen高通量靶向药物筛选技术项目","以团队拥有自主知识产权的药物筛选技术（SERScreen）为核心，提供早期药物筛选外包服务","吉林大学药学院技术团队、北京先明药物开发有限公司（未成立）","观察","工研院","吉浙对口合作"]
[null,138,"吉林省核酸检测实验室建设项目","新建“吉林省核酸检测实验室”，实验室为公司化运营的新型研发机构，下设“核酸检测试剂生产”，“抗原检测试纸生产”，“实时荧光等温扩增仪”，“第三方检测平台”，“样本保存液、提取液及配套耗材”等平台","中科应化(长春)科技有限公司","观察","工研院","吉浙对口合作"]
[null,139,"一种靶向杀伤肿瘤细胞的表达载体及应用项目","利用基因抑制肿瘤生长及形成，起到治疗肿瘤目的","吉林省叁友医药科技有限公司、吉林大学生命科学学院","观察","工研院","吉浙对口合作"]
[null,140,"颈动脉支架的产业化研究项目","解决颈动脉支架依赖进口、价格高等痛点，扶持卡脖子材料和技术的原始创新","中科院长春应化所","观察","工研院","吉浙对口合作"]
[null,141,"可控SiO2基因递送载体项目","一种可调节、可表面修饰的SiO2尖峰载体平台技术，用于核酸递送","长春维石检测技术服务有限公司","观察","工研院","吉浙对口合作"]
[null,142,"免消化蛋白系列产品股权融资项目","采用生物酶工程技术提供一种不需要消化可直接吸收的蛋白质产品","吉林省无量寿生物科技有限公司","观察","工研院","吉浙对口合作"]
[null,143,"百克生物疫苗研发及产业化项目","研发、生产双靶向治疗性阿尔茨海默病疫苗、单纯疱疹病毒-2疫苗等重点疫苗产品","长春百克生物科技股份公司","观察","工研院","百克生物"]
[null,144,"吉林云飞医药有限公司项目","重点针对医药原料、消杀产品及保健品进行研发与生产","吉林云飞医药有限公司","观察","工研院","省股权"]
[null,145,"全自动生化芯片分析系统项目","是一种便携式微型生化分析仪。该系统面向临床及疾病监护对便携式生物、化学检测技术的需求","中科院长春光机所","观察","工研院","市场调研"]
[null,146,"3D支气管内窥镜项目","3D支气管内窥镜是可实现3D成像的支气管内窥镜，可获取支气管内部三维图像信息，并通过3D显示屏显示","中科院长春光机所","观察","工研院","市场调研"]
[null,147,"基因检测设备研发项目","针对细胞分选仪、生物芯片阅读仪等关键设备进行研发、生产","长春技特生物技术有限公司","观察","工研院","市场调研"]
[null,"五","车规级芯片及功率半导体器件",{"$f":"B160-B155","v":4}]
[null,{"$f":"B155+1","v":148},"集成电路产业化项目","集成电路芯片设计及产品制造","长光圆芯、长光辰芯、吉林中科创投、长光集团、长光视园","观察","工研院","长光视园"]
[null,{"$f":"B157+1","v":149},"芯方舟数据处理内存芯片项目","以数据为中心的数据处理芯片","芯方舟（上海）集成电路有限公司","观察","工研院","市场调研"]
[null,{"$f":"B158+1","v":150},"8英寸CIS-FSI年6万片晶圆生产线项目","解决我国芯片代工受限的局面，打造芯片加工全产线。已经建设了国内首家背照式工艺线，已经完成生产平台的搭建，正在积极开拓BSI工艺代工市场，同时依托国家军民融合项目，参与解决国家卡脖子问题","长春长光圆辰微电子技术有限公司","观察","工研院","省重大项目办"]
[null,151,"天明盛OLED OCA光学材料制造项目","建设光学胶产业化基地、光学胶研发中心和产业化生产线","长春天明盛科技有限公司","观察","工研院","十四五重大工业项目"]
[null,"六","人工智能及智能机器人",{"$f":"B174-B160","v":13}]
[null,{"$f":"B160+1","v":152},"华欣公司","华欣公司为运营公司控股、管理团队参股，以“云数链”运营和服务为基础的混合所有制企业。","吉林省华欣数字科技股份有限公司","观察","工研院","运营公司"]
[null,{"$f":"B162+1","v":153},"攀华机器人项目","初期与众升合作开发煮面机器人，满足无人面馆的需求，后续将视情况与攀华集团合作，开发酸菜、榨菜自动化产线等自动化设备","长春众升科技发展有限公司","观察","工研院","工研院对外交流合作中心"]
[null,154,"基于先进光学成像技术的AI检测系统","基于大视场低畸变光学技术、可控波长照明技术、采用长光辰芯的高分辨率大靶面Cmos芯片的AI缺陷智能检测系统达到了应用级水平，解决了完全无规律的复杂图像处理问题、提高了检测的抗干扰能力，通过AI深度学习识别算法将检测准确率大幅度提高，提升了行业智能化、自动化水平。为汽车制造、机械加工等多领域提供了可信赖的解决方案，实现智能制造设备国产化。","中科院长春光机所","观察","工研院","科技大市场"]
[null,{"$f":"B164+1","v":155},"人工智能心理健康检测系统","以医疗检验大数据为基础，集数据汇交、算法分析、计算应用为一体，专注于医疗健康人工智能产品研发","健数（长春）科技","观察","工研院","创客大赛"]
[null,156,"工业物联网标识项目","稀缺资源。工业互联网标识解析二级节点","吉林省钊铭工业互联网有限公司","观察","工研院","市场调研"]
[null,157,"仿生机器人项目","任露泉院士团队，仿生机器人、灵巧手","北京达奇月泉仿生科技有限公司","观察","工研院","市场调研"]
[null,158,"人工智能","博立电子在“智能计算与分析领域”处于国际先进、国内领先水平。自主研发的智能图像处理与视频分析技术已处于国内外领先水平，正积极推动相关技术在智慧体育、智慧医疗、智能网联汽车、智能制造等领域的应用，实现了包括智能体育比赛导播与分析技术、卫星无人机智能图像处理与分析、业界首创的智能全景视觉感知技术、三维视觉与自主导航等一大批研发成果。","长春博立电子科技有限公司","观察","工研院","市场调研"]
[null,159,"智能列车感知系统","在有效检测距离范围内通过激光雷达、毫米波雷达、视频传感器融合技术，对轨面上突发侵入或隧道结构设备落下的障碍物进行主动识别，采用激光雷达或视频传感器等工具对线路进行实时检测，能够准确识别列车运行限界范围内的障碍物大小和位置信息，判断该障碍物影响列车正常运行时，具备向驾驶员预警（在有人驾驶情况下）以及施加制动采取防护措施，可进行分级报警和制动，提高列车运行安全防护。","吉林瑞电科技有限公司","观察","工研院","创客大赛"]
[null,160,"智适应喷涂机器人","在国际上率先提出了基于脑启发的喷涂轨迹自主规划理论，针对新装备制造的多样复杂喷涂需求，突破了机器人自主扫描、点云匹配、站位优化和仿形控制等系列关键技术，实现被喷对象的感知和复杂曲面喷涂轨迹的随机规划，解决自主喷涂轨迹规划全局性、适应性、精确性难以兼顾的问题","长春理工","观察","工研院","企业家日"]
[null,{"$f":"B170+1","v":161},"基于人工智能的视障人士无障碍生活辅助平台项目","通过智能眼镜获取图像或视频，为盲人提供智能识别辅助、一键求助、学习辅助、专属社交、专属商城、专属广告和日常查询等功能，打造一站式、智能化的专属无障碍生活辅助平台","长春云海科技有限公司","观察","工研院","吉浙对口合作"]
[null,{"$f":"B171+1","v":162},"工厂智能化软件研发项目","数字化智能工厂系统解决方案服务商","长春易加科技有限公司","观察","工研院","中科创投"]
[null,163,"智能机器人及自动化装备项目","并联分拣机器人、移动协作机器人、智能黄金自动回收机、实验室自动化装备、小白鼠自动化养殖、水虻养殖自动化生产线、水质检测自动化","中国科学院机器人与智能装备中心、韩国汉阳大学尖端机器人实验室、重庆固高科技长江研究院","观察","工研院","中科德睿"]
[null,164,"低/无代码技术","依托云平台及人工智能等技术支持，为客户提供无/低代码信息系统开发服务","吉林省竹玖信息技术有限公司","观察",null,"科技大市场"]
[null,"七","生物基及高性能新材料",{"$f":"B199-B174","v":24}]
[null,{"$f":"B174+1","v":165},"CVD金刚石项目","在半导体金刚石领域拥有国际先进的技术储备，已具备较好的成果产业化转化条件。在一定规模投资支持和推动下，优化工艺和创新发展新技术，通过小试-中试，短期内可在半导体金刚石基片、掺杂薄膜电极、热沉、半导体单晶晶圆等产品产出，并培育高端半导体器件产品","吉林省冶金研究院、\n吉林大学","观察","工研院","冶金研究院"]
[null,{"$f":"B176+1","v":166},"高性能低游离聚氨酯弹性体","拥有自主研发的低游离预聚物工业化生产技术，已建立起 PPDI、NDI、MDI、TDI 等全系列低游离产品线，除朗盛外第二家拥有完整产品线的公司 ","吉林中科优锐科技有限公司","研究论证","工研院","创客大赛"]
[null,167,"浮空器囊体材料","掌握核心及独家技术","长春应化所","观察","工研院","创客大赛"]
[null,168,"无卤阻燃ABS技术","公司成立于2013年，经过多年的创新发展，现有生产能力可以达到年产各种改性塑料，功能母料5000吨以上，产品广泛用于各种汽车专用料、农膜功能材料。预计未来三年公司将在技术合作和成果转让上投入将达一千万元，将重点研发新型无卤阻燃剂，新型阻燃芯片封装胶，碳纤维固化剂，电磁屏蔽材料，以及采用新的自由基引发剂和工艺制备的接枝物等产品。","吉林省百恩塑胶科技有限公司","观察","工研院","创业导师活动"]
[null,169,"玄武岩纤维","吉林通鑫玄武岩是集玄武岩连续纤维及玄武岩纤维复合材料的研发、生产、销售为一体的新型技术企业。公司采用池窑法，具备产能大、连续拉丝工艺领先、产品稳定性强等优势，主要生产、销售玄武岩纤维无捻粗纱、复合筋、短切纱、土工格栅、玄武岩纤维布、玄武岩纤维增强复合材料、轻量化汽车部件（和一汽合作内饰板、车厢板、传动轴管等）等相关玄武岩纤维及玄武岩纤维复合产品，已中标中铁集团对玄武岩纤维的采购合同，合金金额超千万元。","吉林融信、吉林通鑫","观察","工研院","市场推介"]
[null,170,"新型友好型水性无铬锌铝基金属防护材料的研发及产业化","以新型的无铬钝化成膜液为主要成膜物质，以片状锌、铝粉为主要基质，通过特殊的物理、化学处理工艺，形成一种具有超强防腐能力的无铬绿色防护涂层。广泛的应用于汽车、交通、航空、机械工程及军工领域，可以完全替代目前正在国内大量使用的达克罗技术，替代日本久美特等产品。","吉林华顾时代新型材料科技有限公司","观察","工研院","创客大赛"]
[null,171,"超阻尼材料","公司以“发现具有行业突破性新材料技术，助力产业的发展和进步”为核心理念，以光伏、储能、新能源汽车等产业领域和个人消费升级发展所需关键材料的研发为发展方向。主营为光伏粘结密封用超材料（US树脂）的设计、开发与制造销售，超阻尼材料的设计、制造与销售，氟硅油的制造与销售。","长春中科赫帝森材料科技有限公司","观察","工研院","创客大赛"]
[null,172,"TPI注塑树脂","公司成立于2018年9月，坐落于高新北区，注册资本500万元 由自然人占股70%，长春应化所专利技术占股30%，其中科研团队占股15%。公司的核心产品为聚酰亚胺树脂及复合材料聚酰亚胺纤维及制品 已形成多规格系列产品。","吉林省亚安新材料有限公司","观察","工研院","新材料孵化器"]
[null,{"$f":"B183+1","v":173},"二氧化碳基生物可降解塑料","占面积5.2万平方米，建设5万吨/年生物降解塑料生产装置，建设车间、消防水池、控制室等。11月16日启动试生产","博大东方新型化工（吉林）有限公司","观察","工研院","省重大项目办"]
[null,174,"尼龙56项目","上海凯赛生物公司掌握成熟的尼龙56研发制造技术。在新疆乌苏建设的年产10万吨生产线已经开车运行。拟在松原市建设尼龙56产业链，项目分期建设，省农发行给予融资支持，金沙江能源配套实施能化共轨项目。上海凯赛经过多年技术攻关，成功的实现了以玉米淀粉为原料，通过独特的生物法技术，把淀粉转换为“生物基戊二胺”产品，再与己二酸进一步聚合为“生物基聚酰胺”的工业化工艺技术路线","上海凯赛生物公司","观察","工研院","省重大项目办"]
[null,175,"生物质高附加值综合利用项目","项目以生物质为原料生产纤维素、半纤维素、航空煤油等系列产品。采用 “WSET 三素技术”，计划年产纤维素100万吨、半纤维素40万吨、航空煤油20万吨及其他附属产品。新建动力车间、综合楼、检验中心、原料库等配套设施。已开展项目选址、可研编制等前期工作","中国化学赛鼎工程有限公司","观察","工研院","省重大项目办"]
[null,176,"聚醚醚酮新材料延伸项目","聚醚醚酮（PEEK）深加工系列产品，建设办公楼、综合车间","吉林省中研高分子材料股份有限公司","观察","工研院","省重大项目办"]
[null,177,"具有杀菌消毒功能的空气净化设备","中国科学院长春应用化学研究所与艾易西中国环保科技有限公司共同研究开发具有杀菌消毒功能的空气净化设备。空气净化设备核心滤料使用中科院研发的气相净化材料，每年有800吨空气净化材料可应用于空气净化设备，保证空气净化设备的生产、销售","长春应化所","观察","工研院","企业家日"]
[null,178,"透明抗冲蚀磨损防护涂层材料","开发了透明抗冲蚀磨损的防护涂层材料，具有高透明性、高基底间附着力，可满足在极端使役工况下的需求，高透明抗冲蚀磨损防护涂层已经完成相关涂料的中试放大验证，完成吨级生产线的建设，具备提供吨级原料能力","长春应化所","观察","工研院","企业家日"]
[null,179,"尼龙-11树脂材料制备工艺","打破国外垄断，开发拥有独立知识产权的合成技术，用蓖麻油为主要原料，已实现30吨/年规模的装置全流程扩大生产。以更低的成本实现国外先进水平的产品收率，对标国际产品质量标准，填补了此项技术的国内空白","长春应化所","观察","工研院","企业家日"]
[null,180,"人造腐殖质材料的开发与应用","以玉米秸秆为原料，采用水热催化裂解一步法制备技术完成。该材料经相关检测机构检测，有机质含量60%以上，含腐殖酸、黄腐酸等腐殖质材料40%以上，吸水量为自身重量的350%，能够彻底改变土壤板结、吸水性差等土壤劣化现状。有效保护黑土地，改良盐碱、沙土地，可大幅降低化肥使用量，保障粮食生产安全","长春应化所","观察","工研院","企业家日"]
[null,181,"高性能连续纤维增强聚醚醚酮复合材料及其应用","获得了成熟的连续纤维增强聚醚醚酮复合材料预浸带及其复合材料制品的制备工艺技术，降低了复合材料的成本","吉林大学","观察","工研院","企业家日"]
[null,182,"基于聚二氧化碳树脂（PPC）生物降解胶人工板材 ","基于胶黏剂制备的秸秆复合板材具有无醛、秸秆尤其是玉米秸秆填充量高（重量分数可高达90%）、可完全生物降解、力学性能优异等特点。PPC生物降解胶黏剂制备技术已获中国、美国、欧盟、日本的专利授权，并完成了工业放大技术。拥有自主知识产权的二氧化碳树脂生物降解胶的制备技术","长春应化所","观察","工研院","企业家日"]
[null,183,"木质纤维素生物航油联产化学品项目","研究秸秆类生物质生产航油等高品质液体燃料技术，实现生物航油的替代","中科院广州能源所王晨光团队","观察","工研院","省发改委"]
[null,184,"年产40万吨尼龙5X及5万聚赖氨酸项目","预期建设20万吨/年戊二胺生产线；预期建设40万吨/年尼龙5X生产线；预期建设5万吨/年ε-聚赖氨酸","白城梅花","观察","工研院","玉米深加工规划"]
[null,185,"年产10万吨PPC项目","一期年产5万吨聚碳酸亚丙酯(PPC)项目","博大东方新型化工（吉林）有限公司","观察","工研院","玉米深加工规划"]
[null,186,"碳材料项目","项目建设1万吨硅炭黑，超级电容炭系列产品","吉林省凯禹生物质新材料","观察","工研院","玉米深加工规划"]
[null,187,"高性能聚氨酯制品研发及产业化项目","低残余形变隔振器材料及器件、工程轮胎绿色再制造技术及材料、生物医用高分子材料及制品研发和产业化","长春安旨科技有限公司","观察","工研院","应化所"]
[null,188,"元合电子材料项目","新建合成车间，购置合成设备，补充流动资金","吉林元合电子","观察","工研院","长白山股权"]
[null,"八","新能源及动力电池",{"$f":"B225-B199","v":25}]
[null,{"$f":"B199+1","v":189},"富奥智慧能源","参与富奥智慧能源公司增资，实现动力电池梯次利用、再生利用等多项技术的产业化","富奥智慧能源科技有限公司","投资","工研院","亚东公司"]
[null,{"$f":"B201+1","v":190},"亨昌炭素","全国新能源领域规模最大的石墨坩埚生产企业","吉林市亨昌炭素集团有限责任公司","观察","工研院","市场调研"]
[null,{"$f":"B202+1","v":191},"氢氨融合技术","拟通过李骏院士技术，设立长春氢氨融合设备研发及制造基地","长春市三合通科技公司","观察","工研院","市场调研"]
[null,192,"干法电极项目","一汽研发总院与旗峰公司共同合作推动建设46XX系干法电极产业化研发、生产基地，前期拟建设中试平台（预计需求2000万元）","一汽研发总院、旗峰公司、工研院公司","观察","工研院","旗智创新中心"]
[null,193,"碱性电解水制氢用低成本高性能阳电极项目","吉林大学化学学院无机合成与制备化学国重实验室邹晓新团队所开发的应用于碱性电解水制氢设备的，具备低成本、高性能的析氧阳电极，该电极较传统雷尼镍成本降低2/3，电流密度提升1倍。项目目前已完成实验室阶段，意向融资进行中试及产业文开发","吉林大学","观察","工研院","市场调研"]
[null,194,"低温充电箱","吉林坤熙新能源有限公司（全称）是国内首家国际视野军民融合民营企业。主要对新能源气候应用方面做科技研发和生产制造，公司成立于2021年11月，注册资金3,000万。通过工频的方式形成汽、水、电、声、磁等循环接地，解决电动汽车自燃；通过外保温、内加热的方式，利用特殊材料，解决箱体内温度的平衡，常年实现动力电池平衡温度。","吉林坤熙新能源有限公司","观察","工研院","科技企业投融资对接会"]
[null,{"$f":"B206+1","v":195},"甲醇重整制氢燃料电池动力总成物流车项目","依托自有产权的甲醇重整制氢燃料电池发电技术，与一汽解放合作研发氢能源商用车，利用双方技术优势，制造世界首台完整意义上的甲醇氢燃料电池商用车，结合长春汽车产业发展特点，带动甲醇重整制氢上下游企业形成产业链，助力长春新能源汽车产业发展","广东能创科技有限公司","观察","工研院","省重大项目办"]
[null,196,"新能源客车项目","支持北方客车与延吉国泰汽车公司合作建厂，生产中型客车和大型客车。研发制造电动客车和氢燃料客车等新能源客车及无人驾驶大客车，面向东北、东北亚和一带一路国家提供定制化产品。2019年9月27日，北方客车与延吉市政府签署合作协议，对延边国泰新能源客车注册资本增资2.5亿元，占38%股份，变为第一大股东。2019年9月28日，氢燃料电池公交客车及纯电动公交客车正式下线。目前，公司已通过工信部准入，并取得3款车型的公告","北方客车、国泰汽车","观察","工研院","省重大项目办"]
[null,197,"新能源汽车配套产业基地项目","引进欣旺达电子股份有限公司、天津力神、镇江电信、蜂巢新能源等企业，嫁接同一汽集团开展合作，形成正负极材料、电解液、电池隔膜、电芯制造与组装、回收再利用产业链条，建设新能源汽车配套产业基地","欣旺达电子股份有限公司、天津力神、镇江电信、蜂巢新能源","观察","工研院","省重大项目办"]
[null,198,"阻燃动力电池项目","大族激光与一汽合作开发阻燃动力电池项目。该项目已经在东莞建设中试线，中试成功后再与一汽洽谈合作模式","大族激光、一汽集团","观察","工研院","省重大项目办"]
[null,199,"锂电材料项目","2019年3月19日，我们衔接长春市政府和一汽，与深圳国澳矿业投资公司、纽泰锂业有限公司董事长张礼庆就锂电材料项目合作进行了洽谈。初步确定，依托吉林市，建设锂电材料产业链，形成6万吨锂盐、3万吨正负材料生产能力和2万吨废旧锂电池回收系统。项目总投资50亿元，年税收25亿元，利润20亿元。由省工信厅牵头成立联合工作组，深入洽谈合作事宜。4月2日，我们到深圳纽泰锂业公司上海研发中心进行了考察，就项目方案和落地条件进行了深入讨论。拟依托吉林市化工园区建设锂电材料项目","深圳纽泰锂业有限公司","观察","工研院","省重大项目办"]
[null,200,"风电氢能项目","年生产氢气1万吨，风电容量25万千瓦，匹配电解水制氢、储运、加氢站等设备，采用长管拖车运输，匹配相应的加氢站， 满足3000辆燃料电池车用氢需求","吉电股份发电公司","观察","工研院","省重大项目办"]
[null,201,"年产30万吨燃料乙醇生产项目","此项目为续建项目。占地40万平方米，总投资114000万元，购置相关设备共241台（套），主要建年产30万吨燃料乙醇生产线，项目建成后，年产燃料乙醇30万吨，项目建成后预计产值能达到25.2亿元。国家对燃料乙醇产业从支持向限制或部分限制转变，项目目前处于停工状态","吉林省九新实业集团白城燃料乙醇有限公司","观察","工研院","省重大项目办"]
[null,202,"国家油页岩原位转化先导试验示范区项目","开展油页岩原位转化开采理论和技术体系研究，以工程试验示范为重点，建设实验示范形成技术方案和工艺包，加快推动工业化生产","吉林省能源投资集团","观察","工研院","十四五重大工业项目"]
[null,203,"高登赛高端锂电池项目","主要建设年产10亿WH高端锂电池生产厂房及配套设施","高登赛能源集团有限公司","观察","工研院","十四五重大工业项目"]
[null,204,"新能源汽车锂离子电池负极材料项目","建设年产10万吨汽车锂离子电池负极材料工厂，包括原料预处理车间、材料改性车间、石墨化车间、炉料配料部、中间料加工储运车间、成品加工包装储运车间等","吉林中溢炭素科技有限公司","观察","工研院","十四五重大工业项目"]
[null,205,"LNG供气系统模块总成智能制造","建设单班产能8万台液化天然气（LNG）供气系统模块总成，实现产销量15万台","长春致博新能源装备有限公司","观察","工研院","十四五重大工业项目"]
[null,206,"前兴新能源装备产业基地项目","打造以新能源装备为核心，以常规装备为辅助的循环产业链，配套发展以现代物流业为主的生产性服务业","前郭县前兴建设投资开发有限公司","观察","工研院","十四五重大工业项目"]
[null,207,"质子交换膜电解水（PEMWE）制氢大功率电堆","质子交换膜电解水（PEMWE）制氢因其响应速度快、高效安全、氢气品质好、组合灵活等特点，被认为是可自洽变功率耦合波动性可再生能源制取绿氢的理想技术，市场前景好。长春应化所作为牵头单位，与山东赛克赛斯公司等合作，共同承担了科技部十三五重点研发专项“MW 级固体聚合物电解质电解水制氢技术”项目，开发了MW级PEMWE电堆，中期成果被评定为科技部重大专项重大成果","长春应化所","观察","工研院","企业家日"]
[null,208,"百瓦级便携式燃料电池","一种新型的直接将化学能转化为电能的装置，具有安全、系统相对简单、运行方便，能量密度高等优点，在1000W之内是最有前景的移动型化学电源，其控制发电组件工作在最佳效率95%以上，负载变化最大负载的50%时输出波动小于10%，运行时间超过2500小时，衰减率小于12%，能量转化效率大于45%，整体性能达到国际先进的同类产品水平","长春应化所","观察","工研院","企业家日"]
[null,209,"新能源开发利用项目","企业计划在4个方面与示范区开展合作：一是在示范区建设分布式光伏发电项目，该项目发电可以自发自消纳、余电上网，打造低电价绿色产业园区，为示范区招商引资提供亮点；二是与示范区合作开发光伏制氢、氢能源综合利用、加氢站、氢燃料电池等项目；三是在示范区建设和安装储能装置，同时建设配套换电站、充电桩等相关基础设施；四是清洁能源供暖工程","国家能源投资集团吉林电力有限公司","观察","工研院","500强签约项目"]
[null,210,"高能量动力电池数字智造解决方案项目","通过晶格电极创新设计算法和电极材料微纳3D打印等核心技术，提升动力电池的安全性能、能量密度，降低生产成本","长春交大高能科技有限公司","观察","工研院","吉浙对口合作"]
[null,211,"高安全高比能固态锂电池项目","依托东北师范大学国家固态电池协同创新平台，开展应用为动力电池和储能电池的全固态电池与半固态电池的研发、生产","吉林省东驰新能源科技有限公司","观察","工研院","吉浙对口合作"]
[null,212,"钠离子电池项目","依托江苏众钠能源科技有限公司，研发、生产钠离子电池","江苏众钠能源科技有限公司","观察","工研院","旗智创新中心"]
[null,213,"中盈志合镍氢宽温电池项目","面向汽车动力、轨道车辆与军工、冰雪旅游、环保储能领域，开展四大类别的宽温镍氢电池技术并推进产业化","中盈志合科技有限公司","观察","工研院","应化所"]
[null,"九","碳纤维及复合材料",{"$f":"B236-B225","v":10}]
[null,{"$f":"B225+1","v":214},"华阳碳纤维制造创新中心项目","依托华阳公司，形成规模化产品开发及生产制造能力，打造复合材料生产基地","吉林省华阳新材料研发有限公司、哈尔滨工业大学、军科院卫勤保障研究所","观察","工研院","省重大项目办"]
[null,{"$f":"B227+1","v":215},"碳纤维复合材料研发及产业化项目","面向风电、氢能、汽车、轨道客车领域，开展碳纤维专用复合材料研发及成果转化","吉林国兴碳纤维有限公司","观察","工研院","省重大项目办"]
[null,{"$f":"B228+1","v":216},"高性能碳纤维及其复材产品项目","新建生产厂房，购置国内外先进装置，建设8条碳纤维碳化线，50条碳纤维自动化拉挤生产线，最终形成年产2.4万吨碳丝、1万吨拉挤板、2万支气相沉积坩埚产品的生产规模","三一重能股份有限公司","观察","工研院","省重大项目办"]
[null,217,"碳纤维材料应用项目","与吉林化纤、长春工大等开展产学研合作，推动碳纤维技术应用，已开展碳纤维储氢瓶项目","旗智创新中心、吉林化纤、长春工大","观察","工研院","旗智创新中心"]
[null,{"$f":"B230+1","v":218},"碳纤维制品项目","经过与哈工大、吉林化纤、省金控等单位反复沟通，采取有效模式推进碳纤维制品项目合作。由哈工大牵头，吉林化纤、省国有资本运营公司参与，在长春组建轻量化设计中心有限公司。由吉林化纤牵头，哈工大轻量化设计中心有限公司参与，在吉林市组建碳纤维复合材料生产制造公司。衔接航天科技集团四院和中国兵器工业集团204所，与一汽、长客、奥莱德等企业合作，联合开发高性能碳纤维复合材料、高性能膜材料和有机电致发光材料等，为汽车、轨道客车和半导体显示屏提供新材料配套服务","吉林化纤","观察","工研院","省重大项目办"]
[null,219,"碳纤维产业园项目","项目整理土地28万平方米，除道路和绿化用地占地外，全部出让，出让面积94180平方米，全部为工业用地。规划内容主要为二期石墨产业园区基础设施建设。目前，项目用地选址已完成，正在编制项目可研报告，下步办理相关前期手续","北部新城经济投资开发有限责任公司","观察","工研院","省重大项目办"]
[null,220,"华阳新材料碳纤维制品产业化项目","建设新能源汽车储能系统（电池箱、高压储氢瓶）、板簧、车体结构及覆盖件、轨道交通装备结构件、武器装备产品生产线","吉林华阳新材料","观察","工研院","十四五重大工业项目"]
[null,221,"吉林化纤碳纤维全产业链项目","建设年产15万吨碳纤维原丝、年产5万吨碳纤维碳丝、年产1万吨碳纤维复合材料制品生产厂房及装置","吉林化纤集团有限责任公司","观察","工研院","十四五重大工业项目"]
[null,222,"金风科技大丝束碳纤维桨叶项目","建设64套风电用碳纤维叶片","新疆金风科技股份有限公司","观察","工研院","十四五重大工业项目"]
[null,223,"精功大丝束碳纤维项目","建设4条大丝束碳纤维生产线，形成年产大丝束碳纤维8000吨生产规模","吉林宝旌炭材料有限公司","观察","工研院","十四五重大工业项目"]
[null,"十","遥感卫星及航空航天",{"$f":"B242-B236","v":5}]
[null,{"$f":"B236+1","v":224},"长光博翔双固定翼无人机项目","由长春光机所精密仪器与装备研发中心（即中国科学院精密光电制造技术工程实验室）无人机事业部团队及长光集团共同成立长春长光博翔无人机有限公司，作为长春光机所产业化平台企业，公司于2022年完成全国首创的双飞翼垂直起降固定翼无人机，突破便携性、不耐低温、抗风等诸多技术瓶颈，并在军工领域已与海陆空三军均有深入应用项目，并已与国家电网、国家管网、南方林业集团深入合作，开发用于电力干线自动化巡线、巡防、测绘系统。","长春长光博翔无人机有限公司","研究论证","工研院","光电子孵化器"]
[null,{"$f":"B238+1","v":225},"天翼仿真飞行模拟器项目","在此背景下，吉林省天翼仿真技术有限公司于2015年成立，注册资本1,000万元。公司依托空军航空大学军事仿真技术团队的技术成果、丰富经验和资源优势，向航空工业集团、空军航空大学、空军飞行学院等企业、机构提供教练机、运输机、直升机、战术训练、维修训练等模拟器，所自主研发的飞行模拟器处于国内领先地位，是专注于飞行模拟器科研、生产、维修、服务为一体的专业化高科技企业","吉林省天翼仿真技术有限公司","完成","工研院","省股权"]
[null,{"$f":"B239+1","v":226},"低轨互联网卫星项目","长光卫星公司已经派人到国防科工局参与规划工作，并承接了一颗试验星的研制任务。同时，对标美国ONEWEB方案，加强与中国电科集团54所合作，制定了低轨互联网卫星系统解决方案","长光卫星公司、中国电科集团54所","观察","工研院","省重大项目办"]
[null,{"$f":"B240+1","v":227},"航天技术转移转化中心项目","依托吉林建设航天技术转移转化中心，支持中国航天标准和产品保证研究院与吉林大学共同建设产品质量学院。衔接航天科技集团与深圳超人智能公司开展太空臂合作。衔接航天科技集团四院，与一汽联合开发安全气囊气体发生器，为红旗等汽车提供定制化产品，实现本地化制造","1.航天科技集团2.吉林大学3.一汽集团","观察","工研院","省重大项目办"]
[null,228,"吉林省北斗综合信息服务平台项目","构建全省统一的北斗高分综合信息服务云平台，开展农业、汽车前装、水利环保、航空监管4个领域，对数字乡村的高标准农田建设数字化服务系统","吉林省七星北斗高新技术有限公司","观察","工研院","市场调研"]
[null,"十一","精细化工及天然气化工",{"$f":"B253-B242","v":10}]
[null,{"$f":"B242+1","v":229},"年产3万吨糠醛建设项目","3万t/年糠醛生产装置所涉及的主体工艺、电气、自控、建筑结构等。已经完成了部分场地回填和平整。需要政府落实七通一平有关政策","吉林省北方华龙化工有限公司","观察","工研院","省重大项目办"]
[null,{"$f":"B244+1","v":230},"环氧丙烷和环氧乙烷项目","支持中石油吉化公司对吉神化工实施租赁经营，加强与富维—安道拓、华翔公司等企业的合作，加快环氧丙烷下游产品研发试制和检验认证，大力拓展汽车内饰和座椅市场。积极引进国投生物公司对吉林市众鑫化工进行战略重组，盘活环氧乙烷项目，吉林市政府给予支持。目前，吉神化工环氧丙烷下游聚醚多元醇目前生产平稳，与富维安道拓合作顺畅。积极帮助吉林众鑫化工解决困难，稳定众鑫化工生产。目前，众鑫化工现已恢复生产","中石油吉化公司、国投生物、吉神化工、吉林众鑫","观察","工研院","省重大项目办"]
[null,{"$f":"B245+1","v":231},"长岭天然气化工园区","2020年6月，省工信赴长岭县实地了解化工园区有关建设情况，并提出相关问题的解决方案。6月18日，长岭县政府赴省工信厅汇报化工园区发展现状，希望得到政策支持。目前，依托现有3.81平方公里市级化工园区，引入投资主体，建设上下游产业链，整合资源、制定化工园区发展规划，争取在园区运行后，支持批准设立省级化工园区","金沙江能源、吉化星云、三元化工等企业","观察","工研院","省重大项目办"]
[null,232,"丙烯腈扩建项目","建设26万吨生产装置及配套设施，正在进行规划设计","中国石油吉林石化分公司","观察","工研院","省重大项目办"]
[null,233,"赛氟有机氟系列产品项目","建设年产15100吨氟化产品、4000吨农药及中间体、1000吨医药及中间体、500吨含氟液晶中间体产品生产线","吉林省赛氟精化有限责任公司","观察","工研院","十四五重大工业项目"]
[null,234,"长岭百万吨天然气制烯烃及“气头化身”项目","建设百万吨级天然气制乙烯及下游化工新材料产业链生产线","吉化集团吉林市星云化工有限公司","观察","工研院","十四五重大工业项目"]
[null,235,"大安己二腈基地项目","建设年产20万吨己二腈生产装置",null,"观察","工研院","十四五重大工业项目"]
[null,236,"千吨级聚乙醇酸中试项目","基于目前乙交酯及其聚合物在合成中存在的产率低、易碳化的问题，通过设计专用的乙交酯及其聚合物的合成器，采用合理的工艺技术，降低了乙交酯的裂解温度，降低了能耗，同时降低了低聚乙交酯的粘度，降低了材料的碳化，实现新技术的市场化","长春应化所","观察","工研院","企业家日"]
[null,237,"3万吨/年稀土异戊橡胶 ","自主开发的高活性、高立构选择性可溶稀土催化剂，在世界范围内属于领先技术，目前该技术已经建设一条年产3万吨的生产线，产品力学性能、装置能耗物耗、生产成本全面优于美国及俄罗斯技术","长春应化所","观察","工研院","企业家日"]
[null,238,"呋喃衍生产品项目","5000吨/年2-甲基呋喃、1000吨/年呋喃铵盐、10000吨/年呋喃树脂项目、3000吨/年系列麦芽酚建设项目","四平市精细化学品有限公司","观察","工研院","玉米深加工规划"]
[null,"十二","农产品加工及绿色食品",{"$f":"B274-B253","v":20}]
[null,{"$f":"B253+1","v":239},"公主岭吉农高新玉米加工及生物防治项目","公主岭吉农绿色农业高新科技发展有限公司成立于2006年5月8日,位于“中国玉米之乡”——吉林省公主岭市。主要从事农业生物防治及绿色食品加工的生产和经营。具有年产2000万亩赤眼蜂的综合生产能力，是全国最大、设施最先进赤眼蜂工厂。公司采用生物天敌（赤眼蜂、白僵菌、BT、蠋蝽等技术）方法防治田间害虫，极大降低了农药的使用，将农药残留降到了最低限，农产品品质一流。速冻玉米产品通过百胜集团认证体系，供向必胜客、肯德基。","公主岭吉农高新","观察","工研院","市场调研"]
[null,{"$f":"B255+1","v":240},"省绿色食品院的新型食品开发项目","协同省绿色食品院进一步对接低氘水、富矾大米、运动员食品等创新型项目","吉林省绿色食品工程研究院","观察","工研院","省绿色食品院"]
[null,{"$f":"B256+1","v":241},"牛饲料加工项目","长春博瑞科技股份有限公司是一家专注反刍动物科技的国家高新技术企业，目前形成了以科技研发、生物技术、饲料加工、技术服务、牧业发展为一体的事业布局。博瑞科技目前拥有28家公司，组建了以动物营养研究院为枢纽，饲料工程技术研究中心为平台，10个动物营养检测中心为驱动的科研阵营，通过50余个精准营养服务站将服务遍及20多个省和自治区","长春博瑞科技股份有限公司","观察","工研院","市场调研"]
[null,{"$f":"B257+1","v":242},"年产1万吨腊质玉米变性淀粉项目","项目占地面积约2万平方米，建筑面积1.2万平方米，先建1万吨生产线，通过验证后再扩大产能至10万吨。本项目以蜡质玉米为原料，主要产品为变性淀粉。整个项目工程包括主要生产装置、辅助生产装置、公用工程及中水回用装置。目前，试生产结束，正在办理生产许可证","吉林农业大学、中粮生化能源公主岭有限公司","观察","工研院","省重大项目办"]
[null,243,"中粮年产3万吨柠檬酸纳项目","项目计划建在长春五棵树经济开发区，占地5000平米，预计投资0.5亿元，项目达产后可年产3万吨柠檬酸钠，预计年产值1.4亿元。项目正在走中粮集团内部审批流程，近期可进入实施阶段","中粮集团","观察","工研院","省重大项目办"]
[null,244,"玉米精深加工产业园","推动年产20万吨山梨酸项目早日投产，延伸产业链建设年产50万吨复合饲料项目。目前，山梨酸项目主体施工已完成，罐体已完成，设备正在安装；复合饲料项目正在谋划实施","巨峰生化","观察","工研院","省重大项目办"]
[null,245,"特色食药用菌精准培育和产业化项目","由李玉院士团队牵头，与省内外企业合作，建设特色食药用菌培育基地和标准化厂房建设","李玉院士团队","观察","工研院","省重大项目办"]
[null,246,"延边中国参谷项目","建设总部大厦、优质人参原料基地、主体康养园、主体文化体验园、主要功能区建设、北方中药材交易市场、人参产业研究院、科技金融服务平台、跨境贸易结算中心、期货交易中心等","吉林省绿色食品工研院、广东香雪集团、广东新南方集团","观察","工研院","省重大项目办"]
[null,247,"食药用菌产业园项目","建设世界一流的现代化科研教学、科技成果中试放大和成果市场化转化中心基地（菌菇线上交易平台）、现代物联网供应链立体化营销中心基地及建设现代化生产食药用菌保鲜、初加工和精深加工系列产品示范生产线","李玉院士团队、中榕公司","观察","工研院","省重大项目办"]
[null,248,"人参系列产品精深加工项目","主要生产人参药妆及人参保健食品系列等100多个品种。建设生产车间、仓储库房、中心检验室、办公室及产品展示大楼，主要生产设备、引进国际先进化妆品生产线3条，保健食品生产线2条","吉林靖宇炳华中药开发有限公司","观察","工研院","省重大项目办"]
[null,249,"特色食品产业集群区建设项目","购置粉条、粉丝、杂粮杂豆、鲜食玉米生产线及配套设备，建设冷冻库、材料库、成品库以及相应仓储物流设施。主要用于购置土地及主要生产设备270台(套)。目前冷库已经建设完成，已经购置部分设备","吉林省农投集团生态食品有限公司","观察","工研院","省重大项目办"]
[null,250,"皓月肉牛高值化开发与利用项目","主要建设高端特膳食品、牛皮革汽车内装饰产品的研发与产业化","皓月集团","观察","工研院","十四五重大工业项目"]
[null,251,"皓月肉牛创新中心项目","与北汽集团围绕肉牛创新中心项目合作，打造全球化的国家级肉牛创新中心。总部位于皓月园区小镇内，布局6个分中心","皓月集团","观察","工研院","十四五重大工业项目"]
[null,252,"国信柠檬酸项目","建设年产15万吨柠檬酸装置，分两期建成","江苏国信协联能源有限公司","观察","工研院","十四五重大工业项目"]
[null,253,"嘉吉生化园区玉米深加工产业链项目","建设减糖系列、功能糖系列等7个系列下游产品生产项目，包括氨基酸生产线、10万吨／年反刍动物饲料生产线、全球食品安全技术中心等项目","嘉吉生化有限公司、\n江苏奥古科技公司等","观察","工研院","十四五重大工业项目"]
[null,254,"嘉奥赤藓糖醇项目","主要建设年产4万吨赤藓糖醇的生产线","吉林嘉奥生物科技有限公司","观察","工研院","十四五重大工业项目"]
[null,255,"白城梅花氨基酸三期项目","建设年产30万吨赖氨酸和10万吨有机肥生产装置","吉林梅花氨基酸有限责任公司","观察","工研院","十四五重大工业项目"]
[null,256,"山鹰纸业工业包装纸项目","建成100万吨/年包装纸、100万吨/年秸秆纸浆生产线","山鹰纸业（吉林）有限公司","观察","工研院","十四五重大工业项目"]
[null,257,"年产100吨核苷酸项目","建设内容为2500平方米主厂房、净空包装车间，年产100吨烟酰胺单核苷酸","吉林百奥生物科技有限公司","观察","工研院","玉米深加工规划"]
[null,258,"木糖醇生产项目","生物法制取木糖醇联产黑颗粒","吉林宏日依镁生物工程有限公司、吉林宏日新能源股份有限公司、哈尔滨依镁生物工程科技有限公司","观察","工研院","市场调研"]
[null,"十三","孵化平台",{"$f":"B280-B274","v":5}]
[null,{"$f":"B274+1","v":259},"华创孵化器公司","工研院公司全资子公司，致力于科技成果孵化、转化及产业化，提供科技成果投资、孵化、咨询等支持，注册资本5,000万元。","华创孵化器公司","完成","工研院","自建"]
[null,{"$f":"B276+1","v":260},"长光视园CMOS产业园项目","CMOS 相机产业园为长春经开光电信息产业园特色园中园，是由中科院长春光机所牵头，在长春经济技术开发区管理委员会支持下，采用“政研企”三方共建的方式设立的专业化特色产业园，在孵长光辰芯、长光大器等企业16家。现长光集团拟对该产业园公开挂牌转","长光集团、长光视园、工研院公司","完成","工研院","市场调研"]
[null,{"$f":"B277+1","v":261},"中俄科技园项目","中俄科技园（含中白科技园）是由国家科技部、省市政府、中科院合作建成的国际科技合作与技术创新基地，围绕新材料、智能制造等领域孵化企业100余户","中俄科技园公司、工研院公司","投资","工研院","市场调研"]
[null,{"$f":"B278+1","v":262},"北湖医疗孵化平台","禾芫孵化器成立于2015 年5 月，位于中关村科技园区昌平园核心区，科技部认定的国家级孵化器及众创空间，是首都重点建设的6 家生物医药专业孵化器之一。禾芫孵化器管理团队曾经或正在运营的孵化器及产业服务机构包括中关村生命科学园孵化器、北京禾芫科技孵化器，长春禾芫孵化器有限公司，嘉善禾芫孵化器，累计运营园区或孵化面积20 万平米。","禾芫孵化器","观察","工研院","市场调研"]
[null,{"$f":"B279+1","v":263},"医疗器械创新产业孵化平台","吉林省国科医疗产业孵化有限公司作为吉林省医疗器械创新产业 CDMO 平台的运营管理公司，有上百个二类、三类医疗器械项目的研发到市场的成功经验，高管团队拥有优秀的医疗科技企业孵化和平台运营管理经验，以及国际合作和成果转移转化经验。","吉林省国科医疗产业孵化有限公司","观察","工研院","市场调研"]
[null,"十四","产业技术创新平台",{"$f":"B290-B280","v":9}]
[null,{"$f":"B280+1","v":264},"旗智汽车产业创新中心项目","旗智创新中心是中国一汽双创孵化器、汽开区国家级双创示范基地主载体、长春市红旗产学研创新联盟运营平台，主要经营知识产权孵化转化等业务，致力于提升中国一汽产品技术创新能力，有效整合国内外各类创新资源，建立联合开发、优势互补、成果共享、风险共担的“政产学研用资孵”协同创新机制","长春市旗智汽车产业创新中心有限责任公司","完成","工研院","旗智创新中心"]
[null,{"$f":"B282+1","v":265},"卫星研究院项目","研究院公司与省卫星公司采用“两块牌子一套人马”的一体化运营方式，以“轻资本、重研发、强服务”为原则，按照“强强联合、优势互补”的模式，深度参与吉林省卫星产业发展规划的科学制定，为省卫星公司业务发展设计“施工图”、“路径图”，确保省卫星公司高起点开局、全方位布局并实现跨越式突破","国资公司、理工资产、工研院公司","完成","工研院","运营公司"]
[null,{"$f":"B283+1","v":266},"光电子孵化器","吉林省光电子产业孵化器于2009年注册成立，占地面积11.5万平方米，建筑面积6.86万平方米。孵化器运营主体是由中科院长春光机所、吉林省政府、长春市政府、长春高新区政府共同出资成立的吉林省光电子产业孵化器有限公司，是省内唯一一家国家级A类科技企业孵化器，综合实力持续位居全国同行业前列。 ","吉林省光电子产业孵化器有限公司","完成","工研院","运营公司"]
[null,267,"应化化工新材料孵化器","公司的主营业务为化工及新材料科技企业孵化；技术开发、技术咨询、技术转让和技术服务；科技产品中试、生产与销售；知识产权运营，投资管理等。公司成立后，以“立足吉林省、辐射东三省”为目标，结合吉林省以及东北地区的创新需求，依托长春应化所在材料与化工领域的成果和人才优势，引进外部优质项目，培育多点创新源，创新科研成果的转移、转化机制，为吉林省的材料化工产业技术升级和经济结构调整服务。","吉林省中科应化化工新材料孵化器有限公司","完成","工研院","运营公司"]
[null,268,"知产产权中心项目","公司将开展高价值专利培育、专利布局、知识产权公共服务、知识产权转化等重点工作，将知识产权融入产业创新链、资本链和政策链，最大程度激发产业的创新活力，盘活、释放知识产权储能，并根据创新主体的不同需求，提供定制的、针对性更强的知识产权服务，最终打造成汽车产业专利创造高地和成果转化高地，推动汽车产业高质量发展","工研院公司、旗智创新中心、长春市市场监督管理局","投资","工研院","旗智创新中心"]
[null,269,"吉林省华先科技有限公司","工研院公司全资子公司，致力于致力于技术成果、技术服务的市场推广与转化，注册资本1,500万元。","吉林省华先科技有限公司","投资","工研院","自建"]
[null,270,"吉林省工联科技开发有限公司","公司所属全资子公司华先科技公司参与共建吉林省工联科技开发有限公司，该公司聚焦新一代信息技术发展有利机遇，围绕新型数据基础设施建设、5G/6G通信技术、卫星互联网、碳基全增材FPC柔性电子等新赛道产业不断拓展业务，系华先公司控股混合所有制企业，注册资本1,000万元，华先公司持股比例51%。","吉林省工联科技开发有限公司","投资","工研院","市场调研"]
[null,271,"吉林省创新医药公共服务平台有限责任公司","新药、保健品、功能食品研发；医药技术服务；医药技术咨询；医药信息查询。","吉林省创新医药公共服务平台有限责任公司 ","完成","工研院","运营公司"]
[null,272,"生物医药及医疗器械产业技术创新平台","拟通过参股投资长春国科希莱科技有限公司的方式，与净发集团、苏州国科医工集团共同建设生物医药及医疗器械产业技术创新平台，计划投资额500万元。该平台能够强化公司的科技成果转化平台能力，推动成果的落地孵化产业化，加快吉林省率先在生物医药及医疗器械领域形成集聚发展业态。","长春国科希莱科技有限公司","投资","工研院","市场调研"]
[null,"制表时间：2024年4月    "]

{"sheet":"旗智项目","index":1,"n_rows":14,"n_cols":9,"rows_kept":14,"cut":false,"hidden":false,"merged":[[1,1,1,8]]}
[]
[null,"吉林省工业技术研究院技术创新成果转化项目库统计表"]
[null,"序号","项目名称","主要建设内容及规模","项目主体","项目进展","跟踪支持单位","项目来源","备注"]
[null,2,"旗智汽车产业创新中心项目","服务汽车产业相关科技成果转化","长春市旗智汽车产业创新中心有限责任公司","完成投资","工研院","旗智创新中心"]
[null,9,"知产产权中心项目","通过整合产业、资本、知识产权等资源，充分发挥产业知识产权运营中心的资源整合优势、服务优势、资本优势、科研优势、产业优势，推动汽车产业领域知识产权市场化运营，公司注册资本6900万元。","工研院公司、旗智创新中心、长春市市场监督管理局","接触","工研院","旗智创新中心","新增"]
[null,24,"奔腾定制车型娱乐部件开发项目","为奔腾MPV提供定制化娱乐电子部件，包括操控屏，氛围灯，车载冰箱，车载咖啡机等","旗智创新中心","跟踪","工研院","旗智创新中心"]
[null,25,"红旗球幕驾驶体验项目","采用球幕显示方式，配合多自由度座舱，展示车辆多种路况驾驶体验效果","旗智创新中心","跟踪","工研院","旗智创新中心"]
[null,26,"车载图像增强摄像头研发项目","世界首款基于Intel架构的广播级8K60软件编解码系统，有效增强摄像头在雾天，黑夜环境下的显示效果","旗智创新中心","跟踪","工研院","旗智创新中心"]
[null,28,"纳米保温防火隔声材料应用项目","红旗、奔腾等应用于电池包保温、车体保温降噪等","旗智创新中心","跟踪","工研院","旗智创新中心"]
[null,29,"碳纤维材料应用项目","与吉林化纤、长春工大等开展产学研合作，推动碳纤维技术应用，已开展碳纤维储氢瓶项目","旗智创新中心、吉林化纤、长春工大","跟踪","工研院","旗智创新中心"]
[null,30,"三坐标智慧测量系统项目","转化奔腾柔性工装专利，联合吉大开展智能测量软件开发","旗智创新中心","跟踪","工研院","旗智创新中心"]
[null,31,"车路协同V2X-OBU终端及测试项目","车路协同OBU终端研发，全自主应用开发及测试能力","旗智创新中心","跟踪","工研院","旗智创新中心"]
[null,32,"L4级冗余线控底盘平台车控单元项目","国内最高端量产化自动驾驶线控车辆，量产化，高可靠","旗智创新中心","跟踪","工研院","旗智创新中心"]
[null,132,"协作机器人集成应用项目","孵化本地企业，推动协作机器人在汽车行业应用，提高智能制造水平","旗智创新中心","跟踪","工研院","旗智创新中心"]

{"sheet":"分析","index":2,"n_rows":51,"n_cols":3,"rows_kept":51,"cut":false,"hidden":false,"merged":[]}
[]
[]
[null,"项目名称","数量"]
[null,"生物医药及先进医疗器械",{"$f":"统计表!D95","v":60}]
[null,"汽车电子及新型汽车零部件",{"$f":"统计表!D5","v":33}]
[null,"光电子及智能传感器",{"$f":"统计表!D39","v":30}]
[null,"新能源及动力电池",{"$f":"统计表!D200","v":25}]
[null,"精密仪器及先进装备",{"$f":"统计表!D70","v":24}]
[null,"生物基及高性能新材料",{"$f":"统计表!D175","v":24}]
[null,"农产品加工及绿色食品",{"$f":"统计表!D254","v":20}]
[null,"人工智能及智能机器人",{"$f":"统计表!D161","v":13}]
[null,"精细化工及天然气化工",{"$f":"统计表!D243","v":10}]
[null,"碳纤维及复合材料",{"$f":"统计表!D226","v":10}]
[null,"产业技术创新平台",{"$f":"统计表!D281","v":9}]
[null,"遥感卫星及航空航天",{"$f":"统计表!D237","v":5}]
[null,"孵化平台",{"$f":"统计表!D275","v":5}]
[null,"车规级芯片及功率半导体器件",{"$f":"统计表!D156","v":4}]
[]
[]
[]
[null,"生物医药及先进医疗器械",52]
[null,"汽车电子及新型汽车零部件",36]
[null,"新能源及动力电池",25]
[null,"精密仪器及先进装备",23]
[null,"光电子及智能传感器",21]
[null,"生物基及高性能新材料",19]
[null,"农产品加工及绿色食品",19]
[null,"精细化工及天然气化工",10]
[null,"碳纤维及复合材料",9]
[null,"人工智能及智能机器人",7]
[null,"遥感卫星及航空航天",4]
[null,"车规级芯片及功率半导体器件",3]
{"$rows_empty":7}
[null,54]
[null,29]
[null,25]
[null,24]
[null,22]
[null,20]
[null,19]
[null,10]
[null,9]
[null,8]
[null,5]
[null,3]